fUST/lending_fUST_20251122
["ID","MTS","AMOUNT","RATE_DAILY","PERIOD"]
[394602415,1763749838787,-151.39524175,0.00012603,2]
[394602416,1763749838797,-500.0,0.00012603,2]
[394602417,1763749838807,-500.0,0.00012603,2]
[394602418,1763749838817,-191.4,0.00012603,2]
[394602419,1763749838827,-191.4,0.00012603,2]
[394602420,1763749838836,-191.4,0.00012603,2]
[394602421,1763749838845,-191.4,0.00012603,2]
[394602422,1763749838855,-191.4,0.00012603,2]
[394602423,1763749838866,-191.4,0.00012603,2]
[394602424,1763749838876,-191.41,0.00012603,2]
[394602425,1763749838885,-3071.41245211,0.000127,2]
[394602426,1763749838895,-151.0,0.000127,2]
[394602427,1763749838903,-420.0,0.00012701,2]
[394602428,1763749838911,-500.0,0.0001274,2]
[394602429,1763749838920,-14200.2473444,0.000128,2]
[394602430,1763749838929,-151.0,0.000128,2]
[394602431,1763749838938,-217.15233878,0.00012869,2]
[394602432,1763749838950,-500.0,0.00012877,2]
[394602433,1763749838960,-443.0,0.00012877,2]
[394602434,1763749838969,-4136.97259556,0.000129,2]
[394602435,1763749838979,-501.99138947,0.00012958,2]
[394602436,1763749838988,-4594.0740039,0.00012988,2]
[394602437,1763749838998,-500.0,0.00012993,2]
[394602438,1763749839007,-151.0,0.00013,2]
[394602439,1763749839017,-500.0,0.00013151,2]
[394602440,1763749839028,-33.58967557,0.00013155,2]
[394602466,1763749840219,-143.41032443,0.00013155,2]
[394602468,1763749840228,-151.0,0.000133,2]
[394602469,1763749840237,-112.00560643,0.00013417,2]
[394602731,1763749844236,-113.18136889,0.00013417,2]
[394602732,1763749844246,-500.0,0.00013425,2]
[394602733,1763749844255,-1228.18984416,0.00013429,2]
[394602734,1763749844265,-151.0,0.000135,2]
[394602735,1763749844274,-2166.43663361,0.00013536,2]
[394602736,1763749844286,-1000.0,0.0001354,2]
[394602737,1763749844295,-1228.18984416,0.00013587,2]
[394602738,1763749844304,-500.0,0.00013673,2]
[394602739,1763749844314,-500.0,0.00013673,2]
[394602740,1763749844323,-500.0,0.00013673,2]
[394602741,1763749844332,-500.0,0.00013673,2]
[394602742,1763749844341,-504.3135522,0.00013673,2]
[394602743,1763749844350,-185.32053483,0.00013673,2]
[394603059,1763750442875,170.08535005,8.172e-05,2]
[394603064,1763750465440,170.08535005,8.172e-05,2]
[394603072,1763750487480,170.08535005,8.172e-05,2]
[394603076,1763750509698,170.08535005,8.172e-05,2]
[394603101,1763750531726,170.08535005,8.172e-05,2]
[394603181,1763750553766,170.08535005,8.172e-05,2]
[394603206,1763750576311,170.08535005,8.172e-05,2]
[394603248,1763750598864,170.08535005,8.172e-05,2]
[394603251,1763750621024,170.08535005,8.172e-05,2]
[394603252,1763750629250,170.08535005,8.172e-05,2]
[394603275,1763750652629,150.0,8.214e-05,2]
[394603300,1763750674726,150.0,8.214e-05,2]
[394603301,1763750696695,150.0,8.214e-05,2]
[394603346,1763750719237,150.0,8.214e-05,2]
[394603364,1763750741865,150.0,8.214e-05,2]
[394603366,1763750763866,150.0,8.214e-05,2]
[394603379,1763750785976,150.0,8.214e-05,2]
[394603401,1763750808381,150.0,8.214e-05,2]
[394603403,1763750830471,150.0,8.214e-05,2]
[394603436,1763750845985,150.0,8.214e-05,2]
[394603438,1763750868931,150.0,8.173e-05,2]
[394603443,1763750891035,150.0,8.173e-05,2]
[394603445,1763750914183,150.0,8.173e-05,2]
[394603451,1763750936845,150.0,8.173e-05,2]
[394603509,1763750959375,150.0,8.173e-05,2]
[394603578,1763750982501,150.0,8.173e-05,2]
[394603591,1763751004552,150.0,8.173e-05,2]
[394603671,1763751027524,150.0,8.173e-05,2]
[394603692,1763751032173,-150.0,8.256e-05,2]
[394603693,1763751032183,-150.0,8.339e-05,2]
[394603694,1763751032192,-144.44,8.507e-05,2]
[394603698,1763751032232,-25.64535005,8.507e-05,2]
[394603700,1763751032241,-203.7208947,0.00010064,2]
[394603701,1763751032251,-177.0,0.00010339,2]
[394603702,1763751032260,-172.53768764,0.00010959,2]
[394603708,1763751035562,150.0,8.173e-05,2]
[394603724,1763751038183,-187.34152536,0.00010959,2]
[394603725,1763751038193,-475.57570855,0.00011677,2]
[394603726,1763751038203,-181.54090755,0.00011677,2]
[394603727,1763751038215,-500.0,0.00011677,2]
[394603728,1763751038224,-500.0,0.00011677,2]
[394603729,1763751038234,-500.0,0.00011677,2]
[394603730,1763751038244,-500.0,0.00011677,2]
[394603731,1763751038254,-236.69349174,0.00011677,2]
[394603732,1763751038264,-500.0,0.00011677,2]
[394603733,1763751038273,-500.0,0.00011677,2]
[394603734,1763751038283,-500.0,0.00011677,2]
[394603735,1763751038293,-500.0,0.00011677,2]
[394603736,1763751038302,-500.0,0.00011677,2]
[394603737,1763751038314,-500.0,0.00011677,2]
[394603738,1763751038323,-500.0,0.00011677,2]
[394603739,1763751038334,-500.0,0.00011677,2]
[394603740,1763751038344,-500.0,0.00011677,2]
[394603741,1763751038354,-500.0,0.00011677,2]
[394603742,1763751038364,-500.0,0.00011677,2]
[394603743,1763751038374,-500.0,0.00011677,2]
[394603744,1763751038384,-500.0,0.00011677,2]
[394603745,1763751038394,-500.0,0.00011677,2]
[394603746,1763751038404,-500.0,0.00011677,2]
[394603747,1763751038415,-500.0,0.00011677,2]
[394603748,1763751038424,-500.0,0.00011677,2]
[394603749,1763751038434,-405.07517422,0.00011677,2]
[394603750,1763751038444,-500.0,0.00011677,2]
[394603751,1763751038454,-500.0,0.00011677,2]
[394603752,1763751038466,-500.0,0.00011677,2]
[394603753,1763751038476,-500.0,0.00011677,2]
[394603754,1763751038487,-500.0,0.00011677,2]
[394603755,1763751038497,-500.0,0.00011677,2]
[394603756,1763751038507,-500.0,0.00011677,2]
[394603757,1763751038517,-500.0,0.00011677,2]
[394603758,1763751038527,-500.0,0.00011677,2]
[394603759,1763751038537,-300.0,0.00011677,2]
[394603760,1763751038547,-984.0,0.00011677,2]
[394603761,1763751038556,-890000.0,0.00011678,2]
[394603762,1763751038566,-316.52,0.00011776,2]
[394603763,1763751038576,-500.0,0.00011776,2]
[394603764,1763751038587,-47035.3162823,0.00011777,2]
[394603765,1763751038598,-209.40437684,0.00011977,2]
[394603766,1763751038607,-353.13058887,0.00012009,2]
[394603768,1763751038618,-500.0,0.0001205,2]
[394603770,1763751038628,-439.06770663,0.00012324,2]
[394603772,1763751038637,-204.0,0.00012339,2]
[394603774,1763751038646,-217.15233878,0.00012525,2]
[394603776,1763751038656,-500.0,0.00012619,2]
[394603778,1763751038666,-500.0,0.00012619,2]
[394603780,1763751038675,-500.0,0.00012619,2]
[394603782,1763751038686,-500.0,0.00012619,2]
[394603784,1763751038695,-420.0,0.00012822,2]
[394603786,1763751038706,-4609.06526581,0.000129,2]
[394603788,1763751038716,-2068.4590466,0.00012975,2]
[394603790,1763751038727,-2278.460514,0.00012975,2]
[394603791,1763751038737,-225.18697532,0.00013073,2]
[394603792,1763751038747,-1000.0,0.00013167,2]
[394603794,1763751038757,-1006.33799268,0.00013167,2]
[394603795,1763751038766,-1000.0,0.00013167,2]
[394603796,1763751038775,-1000.0,0.00013167,2]
[394603797,1763751038786,-1403.97133592,0.00013299,2]
[394603798,1763751038795,-504.3135522,0.00013403,2]
[394603799,1763751038805,-500.0,0.00013403,2]
[394603800,1763751038814,-500.0,0.00013467,2]
[394603802,1763751038824,-500.0,0.00013467,2]
[394603803,1763751038834,-151.0,0.000135,2]
[394603805,1763751038844,-500.0,0.00013535,2]
[394603806,1763751038854,-250.0,0.00013535,2]
[394603807,1763751038863,-250.0,0.00013535,2]
[394603808,1763751038873,-250.0,0.00013535,2]
[394603809,1763751038882,-250.0,0.00013535,2]
[394603810,1763751038892,-250.0,0.00013535,2]
[394603811,1763751038902,-250.0,0.00013535,2]
[394603813,1763751038913,-250.0,0.00013535,2]
[394603814,1763751038922,-250.0,0.00013535,2]
[394603815,1763751038931,-250.0,0.00013535,2]
[394603816,1763751038941,-250.0,0.00013535,2]
[394603817,1763751038950,-250.0,0.00013535,2]
[394603818,1763751038959,-2166.43663361,0.00013536,2]
[394603819,1763751038970,-500.0,0.00013544,2]
[394603820,1763751038980,-500.0,0.00013544,2]
[394603821,1763751038990,-492.651972,0.00013544,2]
[394603822,1763751038999,-233.51889341,0.00013621,2]
[394603823,1763751039009,-500.0,0.00013621,2]
[394603824,1763751039019,-500.0,0.00013641,2]
[394603825,1763751039029,-500.0,0.00013641,2]
[394603826,1763751039039,-500.0,0.00013641,2]
[394603827,1763751039048,-292.06825785,0.00013641,2]
[394603828,1763751039058,-523.54771039,0.00013698,2]
[394603829,1763751039068,-500.0,0.00013698,2]
[394603830,1763751039077,-500.0,0.00013698,2]
[394603831,1763751039087,-500.0,0.00013698,2]
[394603832,1763751039096,-500.0,0.00013698,2]
[394603833,1763751039106,-500.0,0.00013698,2]
[394603834,1763751039116,-500.0,0.00013698,2]
[394603835,1763751039125,-500.0,0.00013698,2]
[394603836,1763751039135,-500.0,0.00013698,2]
[394603837,1763751039145,-391.64079085,0.00013698,2]
[394603838,1763751039154,-1165.19,0.00013698,2]
[394603839,1763751039163,-1165.19,0.00013698,2]
[394603840,1763751039173,-1165.19,0.00013698,2]
[394603841,1763751039182,-1165.19,0.00013698,2]
[394603842,1763751039191,-1165.19,0.00013698,2]
[394603843,1763751039201,-1165.19,0.00013698,2]
[394603844,1763751039210,-1165.19,0.00013698,2]
[394603845,1763751039223,-1165.19,0.00013698,2]
[394603846,1763751039233,-1165.19,0.00013698,2]
[394603847,1763751039243,-1165.19,0.00013698,2]
[394603848,1763751039252,-1165.19,0.00013698,2]
[394603849,1763751039261,-1165.19,0.00013698,2]
[394603850,1763751039271,-500.0,0.00013698,2]
[394603851,1763751039280,-500.0,0.00013698,2]
[394603852,1763751039289,-500.0,0.00013698,2]
[394603853,1763751039298,-500.0,0.00013698,2]
[394603854,1763751039307,-500.0,0.00013698,2]
[394603855,1763751039316,-635.36369439,0.00013698,2]
[394603856,1763751039325,-500.0,0.00013698,2]
[394603857,1763751039333,-500.0,0.00013698,2]
[394603858,1763751039342,-592.14750283,0.00013698,2]
[394603859,1763751039351,-500.0,0.00013699,2]
[394603860,1763751039360,-500.0,0.00013699,2]
[394603861,1763751039370,-500.0,0.00013699,2]
[394603862,1763751039380,-500.0,0.00013699,2]
[394603863,1763751039390,-500.0,0.00013699,2]
[394603864,1763751039399,-500.0,0.00013699,2]
[394603865,1763751039409,-500.0,0.00013699,2]
[394603866,1763751039419,-500.0,0.00013699,2]
[394603867,1763751039428,-500.0,0.00013699,2]
[394603868,1763751039437,-376.0,0.00013699,2]
[394603869,1763751039447,-500.0,0.00013699,2]
[394603870,1763751039455,-500.0,0.00013699,2]
[394603871,1763751039466,-500.0,0.00013699,2]
[394603872,1763751039476,-500.0,0.00013699,2]
[394603873,1763751039486,-500.0,0.00013699,2]
[394603874,1763751039495,-500.0,0.00013699,2]
[394603875,1763751039504,-500.0,0.00013699,2]
[394603876,1763751039514,-347.03147393,0.00013699,2]
[394603877,1763751039523,-1048.338305,0.00013699,2]
[394603878,1763751039533,-1000.0,0.00013699,2]
[394603879,1763751039542,-157.383036,0.00013699,2]
[394603880,1763751039551,-157.383036,0.00013699,2]
[394603881,1763751039561,-157.383036,0.00013699,2]
[394603882,1763751039571,-157.383036,0.00013699,2]
[394603883,1763751039586,-151.0,0.00013699,2]
[394603884,1763751039595,-178.321715,0.00013699,2]
[394603885,1763751039605,-193.36129,0.00013699,2]
[394603886,1763751039615,-193.36129,0.00013699,2]
[394603887,1763751039624,-193.36129,0.00013699,2]
[394603888,1763751039634,-193.36129,0.00013699,2]
[394603889,1763751039643,-166.617445,0.00013699,2]
[394603890,1763751039653,-166.617445,0.00013699,2]
[394603891,1763751039663,-166.617445,0.00013699,2]
[394603892,1763751039673,-166.617445,0.00013699,2]
[394603893,1763751039682,-151.0,0.00013699,2]
[394603894,1763751039692,-151.0,0.00013699,2]
[394603895,1763751039701,-151.0,0.00013699,2]
[394603896,1763751039710,-300.0,0.00013699,2]
[394603897,1763751039725,-244.9878,0.00013699,2]
[394603898,1763751039734,-500.0,0.00013715,2]
[394603899,1763751039744,-500.0,0.00013715,2]
[394603900,1763751039753,-166.617445,0.00013724,2]
[394603901,1763751039762,-166.617445,0.00013724,2]
[394603902,1763751039772,-166.617445,0.00013724,2]
[394603903,1763751039781,-166.617445,0.00013724,2]
[394603904,1763751039790,-151.0,0.00013724,2]
[394603905,1763751039799,-151.0,0.00013724,2]
[394603906,1763751039809,-151.0,0.00013724,2]
[394603907,1763751039818,-501.04815291,0.00013758,2]
[394603908,1763751039827,-1403.97133592,0.00013813,2]
[394603909,1763751039836,-1021.13693867,0.00013951,2]
[394603910,1763751039845,-1082.11436431,0.00014015,2]
[394603911,1763751039855,-1000.0,0.00014015,2]
[394603912,1763751039865,-151.0,0.00014015,2]
[394603914,1763751039874,-189.240651,0.00014015,2]
[394603915,1763751039883,-189.240651,0.00014015,2]
[394603917,1763751039892,-189.240651,0.00014015,2]
[394603919,1763751039901,-189.240651,0.00014015,2]
[394603921,1763751039910,-587.0,0.00014081,2]
[394603923,1763751039920,-929.59951479,0.00014082,2]
[394603925,1763751039929,-189.02880096,0.00014092,2]
[394603926,1763751039938,-1000.0,0.00014092,2]
[394603927,1763751039947,-242.15909246,0.00014169,2]
[394603928,1763751040094,-1000.0,0.00014189,2]
[394603929,1763751040104,-1000.0,0.00014189,2]
[394603930,1763751040114,-157.383036,0.00014221,2]
[394603931,1763751040123,-157.383036,0.00014221,2]
[394603932,1763751040133,-157.383036,0.00014221,2]
[394603933,1763751040142,-157.383036,0.00014221,2]
[394603934,1763751040151,-151.0,0.00014221,2]
[394603935,1763751040160,-193.36129,0.00014221,2]
[394603936,1763751040169,-193.36129,0.00014221,2]
[394603937,1763751040179,-193.36129,0.00014221,2]
[394603938,1763751040188,-193.36129,0.00014221,2]
[394603939,1763751040197,-151.0,0.00014221,2]
[394603940,1763751040207,-151.0,0.00014221,2]
[394603941,1763751040217,-151.0,0.00014221,2]
[394603942,1763751040227,-352.058176,0.00014221,2]
[394603943,1763751040237,-352.058176,0.00014221,2]
[394603944,1763751040246,-352.058176,0.00014221,2]
[394603945,1763751040256,-352.058176,0.00014221,2]
[394603946,1763751040266,-151.0,0.00014221,2]
[394603947,1763751040276,-151.0,0.00014221,2]
[394603949,1763751040295,-151.0,0.00014221,2]
[394603951,1763751040306,-284.2886,0.00014221,2]
[394603952,1763751040316,-284.2886,0.00014221,2]
[394603953,1763751040326,-284.2886,0.00014221,2]
[394603954,1763751040335,-284.2886,0.00014221,2]
[394603955,1763751040345,-151.0,0.00014221,2]
[394603957,1763751040354,-151.0,0.00014221,2]
[394603959,1763751040364,-151.0,0.00014221,2]
[394603960,1763751040374,-151.0,0.00014221,2]
[394603961,1763751040384,-151.0,0.00014221,2]
[394603962,1763751040394,-151.0,0.00014221,2]
[394603963,1763751040404,-151.0,0.00014221,2]
[394603964,1763751040413,-187.341294,0.00014221,2]
[394603965,1763751040423,-151.0,0.00014221,2]
[394603966,1763751040433,-187.341294,0.00014221,2]
[394603967,1763751040443,-187.341294,0.00014221,2]
[394603968,1763751040453,-187.341294,0.00014221,2]
[394603969,1763751040463,-213.892558,0.00014221,2]
[394603970,1763751040474,-213.892558,0.00014221,2]
[394603971,1763751040484,-213.892558,0.00014221,2]
[394603972,1763751040494,-213.892558,0.00014221,2]
[394603973,1763751040503,-191.706737,0.00014221,2]
[394603974,1763751040513,-153.756559,0.00014221,2]
[394603976,1763751040523,-153.756559,0.00014221,2]
[394603978,1763751040532,-153.756559,0.00014221,2]
[394603980,1763751040543,-153.756559,0.00014221,2]
[394603982,1763751040553,-151.0,0.00014221,2]
[394603984,1763751040563,-151.0,0.00014221,2]
[394603986,1763751040574,-151.0,0.00014221,2]
[394603988,1763751040588,-151.0,0.00014221,2]
[394603989,1763751040598,-151.0,0.00014221,2]
[394603990,1763751040608,-255.705472,0.00014221,2]
[394603991,1763751040619,-151.0,0.00014221,2]
[394603992,1763751040629,-153.4832,0.00014221,2]
[394603993,1763751040639,-151.0,0.00014221,2]
[394603994,1763751040649,-151.0,0.00014221,2]
[394603995,1763751040659,-151.0,0.00014221,2]
[394603996,1763751040669,-151.0,0.00014221,2]
[394603997,1763751040680,-151.0,0.00014221,2]
[394603998,1763751040690,-151.0,0.00014221,2]
[394603999,1763751040700,-151.0,0.00014221,2]
[394604000,1763751040711,-151.0,0.00014221,2]
[394604001,1763751040726,-151.0,0.00014221,2]
[394604002,1763751040736,-151.0,0.00014221,2]
[394604003,1763751040746,-151.0,0.00014221,2]
[394604004,1763751040756,-151.0,0.00014221,2]
[394604005,1763751040766,-195.756939,0.00014221,2]
[394604006,1763751040775,-195.756939,0.00014221,2]
[394604007,1763751040785,-195.756939,0.00014221,2]
[394604008,1763751040795,-195.756939,0.00014221,2]
[394604009,1763751040806,-151.0,0.00014221,2]
[394604010,1763751040816,-151.0,0.00014221,2]
[394604011,1763751040826,-174.756157,0.00014221,2]
[394604012,1763751040836,-265.488334,0.00014221,2]
[394604013,1763751040847,-151.0,0.00014221,2]
[394604014,1763751040856,-174.756157,0.00014221,2]
[394604015,1763751040866,-265.488334,0.00014221,2]
[394604016,1763751040875,-296.285243,0.00014221,2]
[394604017,1763751040885,-174.756157,0.00014221,2]
[394604018,1763751040895,-265.488334,0.00014221,2]
[394604019,1763751040905,-151.0,0.00014221,2]
[394604020,1763751040915,-174.756157,0.00014221,2]
[394604021,1763751040924,-265.488334,0.00014221,2]
[394604022,1763751040935,-151.0,0.00014221,2]
[394604023,1763751040946,-151.0,0.00014221,2]
[394604024,1763751040956,-151.0,0.00014221,2]
[394604025,1763751040966,-369.28,0.00014221,2]
[394604026,1763751040979,-369.28,0.00014221,2]
[394604027,1763751040989,-369.28,0.00014221,2]
[394604028,1763751040998,-369.28,0.00014221,2]
[394604029,1763751041008,-151.0,0.00014221,2]
[394604030,1763751041018,-151.0,0.00014221,2]
[394604031,1763751041028,-151.0,0.00014221,2]
[394604032,1763751041038,-151.0,0.00014221,2]
[394604033,1763751041047,-151.0,0.00014221,2]
[394604034,1763751041056,-151.0,0.00014221,2]
[394604035,1763751041066,-156.74359,0.00014221,2]
[394604036,1763751041075,-151.0,0.00014221,2]
[394604037,1763751041085,-151.0,0.00014221,2]
[394604038,1763751041094,-151.0,0.00014221,2]
[394604039,1763751041104,-151.0,0.00014221,2]
[394604040,1763751041114,-151.0,0.00014221,2]
[394604041,1763751041123,-151.0,0.00014221,2]
[394604042,1763751041132,-151.0,0.00014221,2]
[394604043,1763751041142,-151.0,0.00014221,2]
[394604044,1763751041153,-151.0,0.00014221,2]
[394604045,1763751041162,-328.503001,0.00014221,2]
[394604046,1763751041172,-328.503001,0.00014221,2]
[394604047,1763751041182,-328.503001,0.00014221,2]
[394604048,1763751041192,-151.0,0.00014221,2]
[394604049,1763751041203,-151.0,0.00014221,2]
[394604050,1763751041212,-151.0,0.00014221,2]
[394604051,1763751041224,-151.0,0.00014221,2]
[394604052,1763751041234,-151.0,0.00014221,2]
[394604053,1763751041244,-864.865066,0.00014221,2]
[394604054,1763751041254,-151.0,0.00014221,2]
[394604055,1763751041263,-328.503001,0.00014221,2]
[394604056,1763751041273,-864.865066,0.00014221,2]
[394604057,1763751041283,-864.865066,0.00014221,2]
[394604058,1763751041292,-864.865066,0.00014221,2]
[394604059,1763751041301,-243.722601,0.00014221,2]
[394604060,1763751041311,-151.0,0.00014221,2]
[394604061,1763751041320,-243.722601,0.00014221,2]
[394604062,1763751041330,-151.0,0.00014221,2]
[394604063,1763751041339,-243.722601,0.00014221,2]
[394604064,1763751041349,-243.722601,0.00014221,2]
[394604065,1763751041359,-151.0,0.00014221,2]
[394604066,1763751041368,-151.0,0.00014221,2]
[394604067,1763751041378,-151.0,0.00014221,2]
[394604068,1763751041388,-151.0,0.00014221,2]
[394604069,1763751041398,-151.0,0.00014221,2]
[394604070,1763751041408,-151.0,0.00014221,2]
[394604071,1763751041417,-151.0,0.00014221,2]
[394604072,1763751041427,-169.988304,0.00014221,2]
[394604073,1763751041438,-169.988304,0.00014221,2]
[394604074,1763751041448,-169.988304,0.00014221,2]
[394604075,1763751041458,-169.988304,0.00014221,2]
[394604076,1763751041468,-151.0,0.00014221,2]
[394604077,1763751041478,-151.0,0.00014221,2]
[394604078,1763751041488,-151.0,0.00014221,2]
[394604079,1763751041497,-501.196059,0.00014221,2]
[394604080,1763751041506,-501.196059,0.00014221,2]
[394604081,1763751041516,-501.196059,0.00014221,2]
[394604082,1763751041525,-501.196059,0.00014221,2]
[394604083,1763751041535,-492.651972,0.00014255,2]
[394604084,1763751041544,-1403.97133592,0.00014328,2]
[394604085,1763751041553,-231.0,0.00014339,2]
[394604086,1763751041563,-233.5662,0.00014384,2]
[394604087,1763751041573,-1165.19,0.0001441,2]
[394604088,1763751041586,-4594.0740039,0.0001441,2]
[394604089,1763751041595,-151.0,0.00014562,2]
[394604090,1763751041604,-151.0,0.00014562,2]
[394604091,1763751041615,-151.0,0.00014562,2]
[394604092,1763751041624,-151.0,0.00014562,2]
[394604093,1763751041633,-180.663154,0.00014562,2]
[394604094,1763751041643,-180.663154,0.00014562,2]
[394604095,1763751041653,-180.663154,0.00014562,2]
[394604096,1763751041663,-180.663154,0.00014562,2]
[394604097,1763751041672,-3097.786887,0.00014562,2]
[394604098,1763751041683,-3097.786887,0.00014562,2]
[394604099,1763751041692,-3097.786887,0.00014562,2]
[394604100,1763751041703,-3097.786887,0.00014562,2]
[394604101,1763751041714,-151.0,0.00014562,2]
[394604102,1763751041725,-151.0,0.00014562,2]
[394604103,1763751041734,-151.0,0.00014562,2]
[394604104,1763751041744,-151.0,0.00014562,2]
[394604105,1763751041754,-189.240651,0.00014562,2]
[394604106,1763751041765,-189.240651,0.00014562,2]
[394604107,1763751041774,-189.240651,0.00014562,2]
[394604108,1763751041784,-189.240651,0.00014562,2]
[394604109,1763751041794,-968.7831424,0.00014563,2]
[394604110,1763751041803,-578.07511778,0.00014603,2]
[394604111,1763751041815,-500.0,0.0001464,2]
[394604112,1763751041824,-153.0,0.00014668,2]
[394604113,1763751041835,-251.11897888,0.00014717,2]
[394604114,1763751041845,-500.0,0.00014737,2]
[394604115,1763751041855,-1500.0,0.00014737,2]
[394604116,1763751041866,-1403.97133592,0.00014843,2]
[394604117,1763751041876,-492.651972,0.00014966,2]
[394604118,1763751041885,-4609.06526577,0.00014994,2]
[394604119,1763751041894,-1386.78395259,0.00015068,2]
[394604120,1763751041904,-205.838032,0.00015068,2]
[394604121,1763751041914,-160.0,0.0001515,2]
[394604122,1763751041923,-82878.93559431,0.00015174,2]
[394604123,1763751041933,-157.383036,0.00015174,2]
[394604124,1763751041942,-157.383036,0.00015174,2]
[394604125,1763751041951,-157.383036,0.00015174,2]
[394604126,1763751041960,-157.383036,0.00015174,2]
[394604127,1763751041972,-151.0,0.00015174,2]
[394604128,1763751041982,-193.36129,0.00015174,2]
[394604129,1763751041991,-193.36129,0.00015174,2]
[394604130,1763751042000,-193.36129,0.00015174,2]
[394604131,1763751042010,-193.36129,0.00015174,2]
[394604132,1763751042021,-166.617445,0.00015174,2]
[394604133,1763751042030,-166.617445,0.00015174,2]
[394604134,1763751042040,-166.617445,0.00015174,2]
[394604135,1763751042049,-166.617445,0.00015174,2]
[394604136,1763751042059,-151.0,0.00015174,2]
[394604137,1763751042069,-151.0,0.00015174,2]
[394604138,1763751042078,-151.0,0.00015174,2]
[394604139,1763751042088,-151.0,0.00015174,2]
[394604140,1763751042097,-151.0,0.00015174,2]
[394604141,1763751042107,-214.573079,0.00015174,2]
[394604142,1763751042120,-352.058176,0.00015174,2]
[394604143,1763751042129,-352.058176,0.00015174,2]
[394604144,1763751042139,-352.058176,0.00015174,2]
[394604145,1763751042150,-352.058176,0.00015174,2]
[394604146,1763751042159,-151.0,0.00015174,2]
[394604147,1763751042169,-161.435812,0.00015174,2]
[394604148,1763751042178,-284.2886,0.00015174,2]
[394604149,1763751042187,-284.2886,0.00015174,2]
[394604150,1763751042197,-284.2886,0.00015174,2]
[394604151,1763751042207,-284.2886,0.00015174,2]
[394604152,1763751042219,-151.0,0.00015174,2]
[394604153,1763751042233,-151.0,0.00015174,2]
[394604154,1763751042242,-151.0,0.00015174,2]
[394604155,1763751042252,-151.0,0.00015174,2]
[394604156,1763751042261,-151.0,0.00015174,2]
[394604157,1763751042271,-151.0,0.00015174,2]
[394604158,1763751042281,-151.0,0.00015174,2]
[394604159,1763751042291,-266.324504,0.00015174,2]
[394604160,1763751042301,-187.341294,0.00015174,2]
[394604161,1763751042311,-187.341294,0.00015174,2]
[394604162,1763751042320,-187.341294,0.00015174,2]
[394604163,1763751042329,-187.341294,0.00015174,2]
[394604164,1763751042339,-213.892558,0.00015174,2]
[394604165,1763751042348,-213.892558,0.00015174,2]
[394604166,1763751042358,-213.892558,0.00015174,2]
[394604167,1763751042368,-213.892558,0.00015174,2]
[394604168,1763751042378,-153.756559,0.00015174,2]
[394604169,1763751042387,-153.756559,0.00015174,2]
[394604170,1763751042566,-153.756559,0.00015174,2]
[394604171,1763751042580,-153.756559,0.00015174,2]
[394604172,1763751042589,-151.0,0.00015174,2]
[394604173,1763751042599,-151.0,0.00015174,2]
[394604174,1763751042608,-151.0,0.00015174,2]
[394604175,1763751042619,-151.0,0.00015174,2]
[394604176,1763751042628,-151.0,0.00015174,2]
[394604177,1763751042637,-151.0,0.00015174,2]
[394604178,1763751042647,-151.0,0.00015174,2]